Cogmind - Beta 14 @@@ ROGUE MODE // 2024.08.31 @ 19:03:22 Player: N.W.L Result: Destroyed by S-27 Virus with Autogun Performance ------------- Evolutions (4) 2000 Regions Visited (16) 3200 Robots Destroyed (236) 1180 Value Destroyed (8791) 8791 Prototype IDs (243) 4860 Alien Tech Used (0) 0 Bonus (5967) 5967 TOTAL SCORE: 25998 Bonus ------- High Alert Combat Kills 1436 Follower Combat Kills 1196 Entered Garrisons 200 Aligned with FarCom 300 Met Data Miner 300 Used Data Conduit 3000 Acquired ECA 300 Friendly Fire -765 Cogmind --------- Core Integrity 0/850 Matter 144/300 Energy 100/100 System Corruption 17% Temperature Cool (2) Movement Flying (55) Location -5/Proximity Caves Parts ------- > --- POWER (1) -------- (None) > --- PROPULSION (4) --- Makeshift Flight Unit > --- UTILITY (7) ------ (None) > --- WEAPON (3) ------- (None) > --- INVENTORY (5) ---- Encrypted Comm Array Authchip [R/Combat] Thermic Laser Long-range Missile Launcher Impact Mace Peak State ------------ > --- POWER ------------ Reinforced Deuterium Engine > --- PROPULSION ------- Heavy Treads Heavy Treads > --- UTILITY ---------- Improved Cooling System Humpback Advanced Targeting Computer Core Analyzer Improved Heavy Armor Plating > --- WEAPON ----------- Gatling Laser Thermic Laser Fusion Bomb Launcher > --- INVENTORY -------- Fission Core Antimatter Reactor Antimatter Reactor Medium Treads Improved Medium Treads Power Amplifier Improved Heat Sink Huge Storage Unit Humpback Seismic Detector Encrypted Comm Array Core Analyzer Matter Filter Layered Medium Armor Plating Focal Shield Authchip [R/Combat] Authchip [R/Combat] Authchip [R/Combat] Dynamic Insulation System Dynamic Insulation System High-powered Tractor Beam Recalibrator Thermic Laser Beamcaster Beamcaster Guided Plasma Cannon Hypervelocity Gauss Rifle Magnetic Acceleration Cannon Magnetic Acceleration Cannon Rocket Array Long-range Missile Launcher Improved Datajack Impact Mace Ripper [Rating: 83] Favorites ----------- Power Antimatter Reactor Engine Heavy Ion Engine Reactor Antimatter Reactor Propulsion Light Treads Treads Light Treads Flight Unit Makeshift Flight Unit Utility Improved Heat Sink Device Improved Heat Sink Storage Huge Storage Unit Processor Core Analyzer Hackware Hacking Suite Protection Light Armor Plating Weapon Beamcaster Energy Gun Beamcaster Energy Cannon Guided Plasma Cannon Ballistic Gun Assault Rifle Ballistic Cannon Light Cannon Launcher Fusion Bomb Launcher Impact Weapon Mace Slashing Weapon Ripper Special Melee Weapon Datajack Build | -11 -10 -10 -10 -9 -8 -8 -7 -7 -7 -6 -6 -6 -6 -6 -6 -5 ------- Run | Yrd Mat Min Exi Min Mat Gar Fac Was Fac Fac Was Fac Low Low Dat Pro Slots Evolved 8 | . . . . . 4 . 2 . . 2 . . . . . . Power . | . . . . . . . . . . . . . . . . . Propulsion 2 | . . . . . 1 . . . . 1 . . . . . . Utility 5 | . . . . . 2 . 2 . . 1 . . . . . . Weapon 1 | . . . . . 1 . . . . . . . . . . . Parts Attached 237 | 7 9 7 4 . 47 28 8 24 25 4 11 18 8 9 15 13 Power 6 | 1 . . . . 2 1 . 1 . . . . 1 . . . Engine 5 | 1 . . . . 2 1 . . . . . . 1 . . . Core . | . . . . . . . . . . . . . . . . . Reactor 1 | . . . . . . . . 1 . . . . . . . . Propulsion 40 | 2 1 . . . 13 8 . 4 2 1 1 4 1 . 2 1 Treads 39 | 2 1 . . . 13 8 . 4 2 1 1 4 1 . 2 . Leg . | . . . . . . . . . . . . . . . . . Wheel . | . . . . . . . . . . . . . . . . . Hover . | . . . . . . . . . . . . . . . . . Flight 1 | . . . . . . . . . . . . . . . . 1 Utility 69 | 2 2 1 1 . 9 3 6 12 6 1 5 4 4 3 4 6 Device 30 | 1 . . . . 4 . 2 4 2 . 4 2 3 2 2 4 Storage 8 | 1 1 . 1 . . . 1 2 . . 1 . . . . 1 Processor 4 | . . . . . 1 . . 1 1 . . 1 . . . . Hackware 1 | . . . . . . . . . . 1 . . . . . . Protection 26 | . 1 1 . . 4 3 3 5 3 . . 1 1 1 2 1 Artifact . | . . . . . . . . . . . . . . . . . Weapon 122 | 2 6 6 3 . 23 16 2 7 17 2 5 10 2 6 9 6 Energy Gun 51 | 1 1 . 1 . 10 4 1 5 8 1 4 6 1 2 6 . Energy Cannon 3 | . . . . . . 1 . 1 . . . 1 . . . . Ballistic Gun 9 | 1 2 . 1 . . . 1 . 1 . . 1 . . 1 1 Ballistic Cannon 16 | . 1 3 . . 7 3 . . . . . . . 2 . . Launcher 31 | . 2 3 . . 4 6 . 1 5 . 1 1 1 2 . 5 Special Weapon . | . . . . . . . . . . . . . . . . . Impact Weapon 8 | . . . . . 2 2 . . 3 . . 1 . . . . Slashing Weapon 2 | . . . . . . . . . . . . . . . 2 . Piercing Weapon . | . . . . . . . . . . . . . . . . . Special Melee Weapon 2 | . . . 1 . . . . . . 1 . . . . . . Unidentified Prototypes 11 | . . . . . 6 . 2 . 2 . . 1 . . . . Corrupted Parts 4 | . . . . . . 3 . . . . . . . . . 1 System Corruption 40 | . . . . . . 30 . . . . . . . . . 10 Parts Lost 39 | . 1 3 . . 3 9 1 3 2 . . 5 3 1 5 3 Power 2 | . . . . . . 1 . . . . . . 1 . . . Propulsion 9 | . . . . . 1 3 . 1 . . . 1 1 . 2 . Utility 17 | . 1 1 . . 1 2 1 2 2 . . 2 1 . 2 2 Weapon 11 | . . 2 . . 1 3 . . . . . 2 . 1 1 1 Highest Loss Streak 6 | . 1 2 . . 1 6 1 3 2 . . 1 2 1 2 3 To Critical Strikes . | . . . . . . . . . . . . . . . . . Average Slot Usage (%) 87 | . 99 100 85 85 94 98 90 80 91 92 86 79 79 78 72 65 Engine 6 | . 14 14 14 14 9 8 7 2 . . . . 3 6 6 5 Reactor 2 | . . . . . . . . 4 7 6 6 6 1 . . . Treads 19 | . 27 28 28 28 26 26 23 12 14 20 16 13 13 13 13 11 Device 13 | . 4 . . . 11 9 7 16 23 26 23 17 19 19 17 11 Storage 8 | . 14 14 14 14 9 9 7 6 7 6 6 6 6 6 6 5 Processor 6 | . . . . . 7 9 7 3 6 6 6 10 13 13 9 5 Protection 6 | . 9 14 14 14 7 8 12 9 6 . . 2 . . 3 5 Energy Gun 14 | . 10 . 7 14 17 12 8 20 22 19 19 19 15 6 11 12 Ballistic Gun 1 | . 12 . . . . . 5 . . . . . . . . 1 Ballistic Cannon 2 | . 2 26 . . 3 4 . . . . . . . 6 . . Launcher 1 | . 1 . . . . 5 5 . . . . . 3 5 . 3 Peak Build Rating 83 | 7 9 10 26 26 43 39 45 62 67 69 80 81 80 83 79 69 Average Rating 49 | 5 8 9 18 26 37 32 39 50 63 67 73 78 76 76 67 59 On Entrance 44 | . 7 9 9 26 26 34 32 45 62 62 69 80 79 78 75 65 Naked Turns 105 | . . . . . . . . 41 . . . . . . . 64 Heaviest Build 257 | 15 38 38 96 96 107 107 122 239 122 115 234 240 242 249 247 257 Greatest Support 140 | 40 40 40 40 40 64 60 60 90 90 112 140 140 140 140 140 58 Greatest Overweight (x) 4 | . . . 2 2 2 2 2 3 1 1 1 2 1 1 4 4 Average Overweight (x) . | . . . . 2 1 1 1 1 1 . 1 1 1 1 1 1 Largest Inventory Capacity 35 | 8 15 15 25 25 25 25 25 35 25 25 35 35 35 35 35 35 Average Capacity 26 | 7 12 15 17 25 25 25 25 27 25 25 29 35 35 35 35 31 Most Carried 35 | 2 14 15 21 23 25 25 25 25 25 23 35 35 35 35 33 35 Average Carried 24 | 1 10 13 16 22 24 24 24 18 24 21 28 34 33 34 29 30 Final Capacity 35 | 8 15 15 25 25 25 25 25 25 25 25 35 35 35 35 35 5 Final Carried 35 | 2 14 14 21 23 25 23 25 25 23 23 35 33 35 33 30 5 Class Distribution -------------------- 28% | Hauler-Gunner 23% | Mutant 16% | Scavenger-Gunner 10% | Skirmisher 5% | Scavenger-Skirmisher 5% | Tank 3% | Hauler-Mutant Dominant Class ---------------- Mutant | -10/Materials Mutant | -10/Mines Mutant | -10/Exiles Mutant | -9/Mines Skirmisher | -8/Materials Scavenger-Skirmisher | -8/Garrison Tank | -7/Factory Scavenger-Gunner | -7/Waste Scavenger-Gunner | -7/Factory Scavenger-Gunner | -6/Factory Scavenger-Gunner | -6/Waste Hauler-Gunner | -6/Factory Hauler-Gunner | -6/Lower Caves Hauler-Gunner | -6/Lower Caves Hauler-Gunner | -6/Data Miner Hauler-Gunner | -5/Proximity Caves Resources | -11 -10 -10 -10 -9 -8 -8 -7 -7 -7 -6 -6 -6 -6 -6 -6 -5 ----------- Run | Yrd Mat Min Exi Min Mat Gar Fac Was Fac Fac Was Fac Low Low Dat Pro Matter Collected 4534 | 308 260 446 . 52 682 578 253 284 438 16 134 223 204 139 303 214 Remotely 301 | . . . . . . . . . 171 16 114 . . . . . Salvage Created 9998 | 105 343 492 . 137 2224 1550 217 57 1639 16 269 1778 284 310 380 197 Parts 418 | 3 31 21 . 7 118 58 10 4 63 3 4 70 3 8 4 11 Haulers Intercepted 14 | . 1 . . . 5 . 2 . 2 . . 4 . . . . Recyclers Shooed 8 | . 2 1 . . 1 . . . . . . 4 . . . . Parts Field Recycled . | . . . . . . . . . . . . . . . . . Retrieved Matter . | . . . . . . . . . . . . . . . . . Parts Self-Destructed 23 | . . . . . . . . . . . . . 3 8 . 12 Prevented 2 | . . . . . . . . . . . . . . . . 2 Kills | -11 -10 -10 -10 -9 -8 -8 -7 -7 -7 -6 -6 -6 -6 -6 -6 -5 ------- Run | Yrd Mat Min Exi Min Mat Gar Fac Was Fac Fac Was Fac Low Low Dat Pro Combat Hostiles Destroyed 174 | . 6 21 . 3 38 31 2 . 24 . 1 20 8 10 4 6 Melee 3 | . . . . . . 2 . . . . . 1 . . . . Guns 61 | . . . . 3 21 1 2 . 12 . 1 12 4 2 1 2 Cannons 26 | . . 12 . . 4 8 . . . . . 2 . . . . AOE 66 | . 6 9 . . 9 17 . . 8 . . 2 4 7 . 4 Classes Destroyed 24 | 2 6 1 . 1 2 3 . 1 3 . 1 2 . 1 . 1 Worker 15 | . 4 1 . . 3 . . . 3 . . 4 . . . . Builder 6 | . 1 1 . . . . . . . . . 4 . . . . Tunneler 6 | 1 . 2 . . 1 . . . . . . 2 . . . . Hauler 14 | . 1 . . . 5 . 2 . 2 . . 4 . . . . Recycler 11 | 1 2 4 . . 2 . . . 1 . . 1 . . . . Minesweeper 1 | . . . . . . . . . . . . . . . . 1 Mechanic 3 | . . . . . . . . . 3 . . . . . . . Operator 2 | . . . . . . . . . 1 1 . . . . . . Watcher 12 | . 3 . . . 5 . . . 3 . . 1 . . . . Swarmer 24 | . 3 5 . . 9 . . . 3 . . 2 . . . 2 Cutter 2 | . . . . . . 2 . . . . . . . . . . Grunt 74 | . 3 4 . 2 21 16 . . 11 . . 7 6 3 . 1 Brawler 7 | . . . . 1 . 3 . . . . . 2 . 1 . . Duelist 6 | . . . . . . 2 . . 3 . . . 1 . . . Protector 1 | . . . . . . . . . 1 . . . . . . . Sentry 18 | . . . . . 8 2 1 . 4 . . 1 . 1 . 1 Hunter 8 | . . . . . 1 1 . . 1 . . 1 . 2 . 2 Programmer 13 | . . . . . . 5 1 . 1 . . 5 1 . . . Heavy 1 | . . . . . . . . . . . . 1 . . . . Behemoth 2 | . . . . . . . . . . . . 1 . 1 . . Compactor 1 | . . . . . . . . . . . 1 . . . . . Enhanced Grunt 4 | . . . . . . . . . . . . . . . 4 . Master Thief 2 | . . . . . . . . . . . . . . 2 . . Assembled 12 | . . 12 . . . . . . . . . . . . . . Thug 1 | . . . . . . 1 . . . . . . . . . . Martyr 1 | . . . . . . . . 1 . . . . . . . . Best Kill Streak 12 | 2 6 10 . 3 8 5 1 . 12 1 1 4 4 4 2 3 Combat Bots Only 10 | . 3 8 . 3 8 5 1 . 10 . 1 3 4 4 2 3 Max Kills in Single Turn 4 | 1 2 4 . 1 3 2 1 1 2 1 1 3 2 2 1 1 Gunslinging 1 | . . . . . . . . . . . . . 1 . . . Exploded 3 | . 2 2 . . 3 2 . . 2 . . 2 1 2 . 1 Melee 1 | . . . . . . 1 . . . . . 1 . . . . Uniques/NPCs Destroyed 1 | . . . . . . . . . . . . . . . 1 . Data Miner (-6/Data Miner) Combat | -11 -10 -10 -10 -9 -8 -8 -7 -7 -7 -6 -6 -6 -6 -6 -6 -5 -------- Run | Yrd Mat Min Exi Min Mat Gar Fac Was Fac Fac Was Fac Low Low Dat Pro Hostile Shots Fired 793 | . 16 45 . 1 133 87 73 4 130 . . 146 16 48 30 64 Missed 271 | . 3 19 . . 39 22 34 2 55 . . 52 3 15 6 21 Damage Taken 10049 | . 171 411 . 11 1399 1376 364 534 1025 . . 1549 246 724 1147 1092 Core 1605 | . 11 75 . 11 89 223 5 189 146 . . 81 . 90 146 539 Absorbed by Shields 95 | . . . . . 81 . . . 14 . . . . . . . Reduced by Siege Mode 168 | . . . . . . . . . 31 . . 10 19 . 108 . Regen/Repaired (Parts) 333 | . . . . . . . . 144 7 . . 182 . . . . Core Remaining (%) 63 | 100 . . . 61 . 43 . . 51 . . . . . . . Volleys Fired 589 | 14 27 49 . . 117 103 26 22 85 1 2 75 15 17 23 13 Largest 3 | 2 2 2 . . 3 3 2 3 3 3 3 3 3 3 3 3 Hottest 250 | 70 70 70 . . 157 155 103 225 225 225 225 245 230 250 235 183 Shots Fired 1222 | 28 44 77 . 8 289 126 43 26 222 3 6 205 34 30 61 20 Gun 929 | 28 29 . . 8 240 44 39 11 207 3 6 198 26 19 61 10 Cannon 163 | . 5 68 . . 39 29 . 15 . . . 6 1 . . . Launcher 130 | . 10 9 . . 10 53 4 . 15 . . 1 7 11 . 10 Special . | . . . . . . . . . . . . . . . . . Kinetic 180 | 14 22 68 . . 39 16 17 . . . . . . . 2 2 Thermal 912 | 14 12 . . 8 240 57 22 26 207 3 6 204 27 19 59 8 Explosive 60 | . 10 9 . . 5 3 . . 4 . . 1 7 11 . 10 Electromagnetic 70 | . . . . . 5 50 4 . 11 . . . . . . . Robot Hit Streak 43 | 5 6 10 . 13 22 10 7 5 18 8 3 18 21 43 27 32 Robot Miss Streak 5 | 3 4 3 . . 5 3 3 3 5 . 1 3 3 2 3 1 Penetration Max . | . . . . . . . . . . . . . . . . . Secondary Targets 3 | . . . . . . . . . 1 . . 1 1 . . . Max Gunslinging Chain 1 | . . . . . . . . . 1 . . 1 1 . . . Autonomous 97 | . . . . 8 89 . . . . . . . . . . . Shots Hit Robots 745 | 17 24 45 4 8 182 49 25 6 138 2 3 143 18 20 54 7 Core Hits 438 | 3 27 38 . 3 76 46 7 4 71 1 2 74 21 23 30 12 Critical Kills 3 | . . . . . . 2 . . . . . . . . . 1 Critical Parts Destroyed . | . . . . . . . . . . . . . . . . . Critical Strikes 52 | 1 1 4 . . 2 2 2 . 7 . . 22 . 2 8 1 Burn 44 | 1 1 . . . 1 . 2 . 7 . . 22 . 2 8 . Destroy 1 | . . . . . . . . . . . . . . . . 1 Blast 5 | . . 4 . . 1 . . . . . . . . . . . Smash 2 | . . . . . . 2 . . . . . . . . . . Melee Attacks 42 | . . . 4 . 5 9 . . 1 1 . 5 . . 17 . Impact 20 | . . . . . 5 9 . . 1 . . 5 . . . . Slashing 17 | . . . . . . . . . . . . . . . 17 . Piercing . | . . . . . . . . . . . . . . . . . Sneak Attacks 6 | . . . 4 . . . . . . 1 . . . . 1 . Combat Hostiles . | . . . . . . . . . . . . . . . . . Follow-up Attacks . | . . . . . . . . . . . . . . . . . Damage Inflicted 24760 | 152 835 1764 . 124 4908 3473 636 371 4247 21 63 3681 966 1872 806 841 Guns 13106 | 152 225 . . 124 3895 471 543 145 2792 21 63 3003 431 400 717 124 Cannons 2687 | . 30 846 . . 503 813 . 226 . . . 229 40 . . . Explosions 8557 | . 580 918 . . 507 1984 93 . 1399 . . 392 495 1472 . 717 Melee 274 | . . . . . . 205 . . . . . . . . 69 . Ramming 136 | . . . . . 3 . . . 56 . . 57 . . 20 . Kinetic 2127 | 90 119 846 . . 503 303 253 . . . . . . . 7 6 Thermal 14096 | 62 136 291 . 124 3895 1052 290 371 2860 21 63 3232 471 400 710 118 Explosive 5290 | . 580 627 . . 240 303 . . 464 . . 392 495 1472 . 717 Electromagnetic 2837 | . . . . . 267 1610 93 . 867 . . . . . . . Impact 205 | . . . . . . 205 . . . . . . . . . . Slashing 69 | . . . . . . . . . . . . . . . 69 . Piercing . | . . . . . . . . . . . . . . . . . Highest Corruption 41 | . 2 2 2 2 1 41 . 4 5 . . 2 3 3 7 17 Average Corruption 3 | . 1 2 2 2 1 4 . 4 4 . . 2 2 3 5 7 Corruption Purged . | . . . . . . . . . . . . . . . . . Corruption Blocked . | . . . . . . . . . . . . . . . . . Effects 288 | . 15 14 6 11 3 33 . 31 51 . . 25 21 17 15 46 Message Errors 91 | . 9 4 1 3 1 8 . 11 23 . . 9 5 7 4 6 Matter Fused 64 | . 2 2 1 2 1 9 . 9 8 . . 4 6 3 2 15 Heat Flow Errors 27 | . 1 1 . 2 . 3 . 2 5 . . 3 1 . 2 7 Energy Discharges 26 | . . 2 2 . . 2 . 2 1 . . 1 4 2 1 9 Parts Rejected 1 | . . . . . . . . . . . . 1 . . . . Parts Fused 4 | . 1 1 . . . 1 . . . . . . . 1 . . Data Loss (minor) 36 | . 2 2 2 2 . 4 . 4 6 . . 4 3 3 2 2 Data Loss (major) 13 | . . . . . 1 3 . 3 1 . . . . . 1 4 Misfires 10 | . . 1 . . . 1 . . 1 . . 2 1 1 1 2 Alerts 9 | . . . . 2 . 2 . . 4 . . . 1 . . . Misdirections 1 | . . . . . . . . . . . . . . . . 1 Weapon Failures 6 | . . 1 . . . . . . 2 . . 1 . . 2 . Overload Shots . | . . . . . . . . . . . . . . . . . Overflow Damage 416 | . 20 79 . . 58 67 . . 27 . . 8 17 10 . 130 Projectiles 59 | . . 48 . . . 11 . . . . . . . . . . Explosions 339 | . 20 31 . . 58 45 . . 27 . . 1 17 10 . 130 Melee 18 | . . . . . . 11 . . . . . 7 . . . . Knockbacks 21 | . . 9 . . 3 8 . . 1 . . . . . . . Impact 4 | . . . . . . 3 . . 1 . . . . . . . Kinetic 15 | . . 9 . . 3 3 . . . . . . . . . . Secondary 2 | . . . . . . 2 . . . . . . . . . . Self-Inflicted Damage 1183 | . 42 . . . 106 359 . . . . . . . 413 20 243 Shots 45 | . 2 . . . 5 24 . . . . . . . 10 . 4 Rammed 4 | . . . . . 1 . . . 3 . . . . . . . Targets Rammed 6 | . . . . . 1 . . . 4 . . 1 . . . . Kicked . | . . . . . . . . . . . . . . . . . Crushed 2 | . . . . . . . . . 1 . . 1 . . . . Highest Temperature 575 | 63 272 218 . 265 111 300 270 387 122 . . 324 474 318 575 257 Average Temperature 92 | 28 58 40 . 116 35 86 119 156 59 . . 89 178 116 145 82 Received Heat Transfer 1661 | . 33 21 . 6 513 207 66 . 158 . . 453 27 42 . 135 Effects 8 | . . . . . . . 2 1 . . . . . . 5 . Energy Bleed 3 | . . . . . . . 2 1 . . . . . . . . Matter Decay 2 | . . . . . . . . . . . . . . . 2 . Damage (major) 3 | . . . . . . . . . . . . . . . 3 . Siege Activations 8 | . . . . . . . . . 4 . . 1 1 . 2 . Total Turns 200 | . . . . . . . . . 84 . . 13 21 . 82 . Longest Duration 62 | . . . . . . . . . 62 . . 13 21 . 53 . Robots Corrupted 6 | . . . . . 1 3 . . 2 . . . . . . . Combat Hostiles 6 | . . . . . 1 3 . . 2 . . . . . . . Parts Fried 15 | . . . . . 2 7 . . 6 . . . . . . . Impact Corruptions 2 | . . . . . . 1 . . . . . 1 . . . . Robots Melted 12 | . . . . . 3 . . . 2 . . 3 . 1 3 . Combat Hostiles 12 | . . . . . 3 . . . 2 . . 3 . 1 3 . Parts Melted 83 | . . 2 . . 12 2 4 . 17 . . 23 4 5 14 . Heat Transferred 29906 | 259 481 400 . 148 6142 1802 629 739 5478 37 111 8604 900 1124 2867 185 Parts Sabotaged . | . . . . . . . . . . . . . . . . . Parts Stolen 3 | . . . . . . . . . . . . . . 3 . . Parts Stripped . | . . . . . . . . . . . . . . . . . Power Chain Reactions 8 | . . . . . . 3 . . 5 . . . . . . . Alert | -11 -10 -10 -10 -9 -8 -8 -7 -7 -7 -6 -6 -6 -6 -6 -6 -5 ------- Run | Yrd Mat Min Exi Min Mat Gar Fac Was Fac Fac Was Fac Low Low Dat Pro Peak Influence 1865 | 10 235 231 . 74 678 1865 978 268 947 480 168 286 . . . . Initial 978 | . 6 . . . . 440 978 257 . 460 168 . . . . . Average 331 | 3 68 123 . 38 245 1147 830 94 325 465 78 127 . . . . Maximum Alert Level 5 | . 1 1 . . 2 5 3 1 3 2 . 1 . . . . Low Security (%) 56 | 100 90 91 . 100 52 . . 69 51 . 100 73 . . . . Level 1 15 | . 9 8 . . 30 . . 30 12 . . 26 . . . . Level 2 9 | . . . . . 16 11 5 . 19 100 . . . . . . Level 3 12 | . . . . . . 32 94 . 16 . . . . . . . Level 4 5 | . . . . . . 50 . . . . . . . . . . Level 5 . | . . . . . . 5 . . . . . . . . . . High Security . | . . . . . . . . . . . . . . . . . Max Security . | . . . . . . . . . . . . . . . . . Squads Dispatched 47 | . 3 . . . 12 . 1 . 15 3 . 12 . . . 1 Investigation 14 | . 3 . . . 5 . . . 3 1 . 2 . . . . Extermination 10 | . . . . . . . 1 . 4 1 . 4 . . . . Reinforcement 14 | . . . . . 4 . . . 6 1 . 3 . . . . Assault 3 | . . . . . . . . . 2 . . . . . . 1 Garrison 6 | . . . . . 3 . . . . . . 3 . . . . Intercept . | . . . . . . . . . . . . . . . . . Searches Triggered . | . . . . . . . . . . . . . . . . . Construction Impeded 4 | . . . . . 3 . . . 1 . . . . . . . Haulers Reinforced 1 | . . . . . . . . . 1 . . . . . . . Active Scanning Responses . | . . . . . . . . . . . . . . . . . Cargo Convoy Interrupts . | . . . . . . . . . . . . . . . . . Stealth | -11 -10 -10 -10 -9 -8 -8 -7 -7 -7 -6 -6 -6 -6 -6 -6 -5 --------- Run | Yrd Mat Min Exi Min Mat Gar Fac Was Fac Fac Was Fac Low Low Dat Pro Distress Signals 11 | . 1 . . . 2 . . . 6 . . 2 . . . . Communications Jammed 4 | . . . . . . . 4 . . . . . . . . . Distress Signals 4 | . . . . . . . 4 . . . . . . . . . Times Spotted 272 | . 10 19 . 3 53 32 6 6 56 1 1 28 7 12 4 34 Peak Tracking Total 13 | . 3 7 . 3 4 6 2 4 8 1 1 5 3 4 2 13 Tactical Retreats 15 | . . 1 . . 3 2 . . . . . 2 1 . . 6 Traps | -11 -10 -10 -10 -9 -8 -8 -7 -7 -7 -6 -6 -6 -6 -6 -6 -5 ------- Run | Yrd Mat Min Exi Min Mat Gar Fac Was Fac Fac Was Fac Low Low Dat Pro Traps Triggered 28 | . 3 . . . . 16 1 . 3 1 . 4 . . . . Indirectly 12 | . . . . . . 11 . . 1 . . . . . . . Trap Hack Attempts . | . . . . . . . . . . . . . . . . . Triggered . | . . . . . . . . . . . . . . . . . Disarmed . | . . . . . . . . . . . . . . . . . Reprogrammed . | . . . . . . . . . . . . . . . . . Reused 1 | . . . . . . . . . . . . . . . . 1 Traps Extracted . | . . . . . . . . . . . . . . . . . Installed 1 | . . . . . . . . . . . . . . . . 1 Triggered 5 | . . . . . . . . . . . . . 2 . . 3 Most Traps Carried 5 | . . . . . . . . . . . . . . . . 5 Machines | -11 -10 -10 -10 -9 -8 -8 -7 -7 -7 -6 -6 -6 -6 -6 -6 -5 ---------- Run | Yrd Mat Min Exi Min Mat Gar Fac Was Fac Fac Was Fac Low Low Dat Pro Machines Disabled 25 | . 3 5 . . 2 8 . . 3 . . 4 . . . . Max in Single Turn 5 | . 1 5 . . 2 2 . . 1 . . 2 . . . . Garrison Relay 3 | . . . . . . 3 . . . . . . . . . . Machines Repaired . | . . . . . . . . . . . . . . . . . Machines Dismantled . | . . . . . . . . . . . . . . . . . Machines Sabotaged . | . . . . . . . . . . . . . . . . . Overloaded Fab Kills . | . . . . . . . . . . . . . . . . . Hacking | -11 -10 -10 -10 -9 -8 -8 -7 -7 -7 -6 -6 -6 -6 -6 -6 -5 --------- Run | Yrd Mat Min Exi Min Mat Gar Fac Was Fac Fac Was Fac Low Low Dat Pro Machines Accessed 45 | . 9 . 2 . 11 3 2 . 3 2 . 10 . . 3 . Terminals 25 | . 7 . . . 9 3 . . . 1 . 5 . . . . Fabricators 3 | . . . . . . . . . 1 1 . 1 . . . . Repair Stations 1 | . . . . . . . . . . . . 1 . . . . Recycling Units 5 | . 2 . . . 1 . 1 . . . . 1 . . . . Scanalyzers 2 | . . . . . . . 1 . . . . 1 . . . . Garrison Access 4 | . . . . . 1 . . . 2 . . 1 . . . . Total Hacks 141 | . 28 . 5 . 36 8 2 . 10 5 . 20 . . 27 . Successful 71 | . 13 . 5 . 10 2 . . 4 2 . 8 . . 27 . Failed 70 | . 15 . . . 26 6 2 . 6 3 . 12 . . . . Catastrophic 19 | . 2 . . . 8 1 1 . . 2 . 5 . . . . Database Lockouts . | . . . . . . . . . . . . . . . . . Manual 59 | . 20 . 1 . 23 3 . . 3 3 . 6 . . . . Terminals 75 | . 24 . . . 33 8 . . . 3 . 7 . . . . Fabricators 10 | . . . . . . . . . 4 2 . 4 . . . . Repair Stations 1 | . . . . . . . . . . . . 1 . . . . Recycling Units 8 | . 4 . . . 1 . 1 . . . . 2 . . . . Scanalyzers 4 | . . . . . . . 1 . . . . 3 . . . . Garrison Access 11 | . . . . . 2 . . . 6 . . 3 . . . . Terminal Hacks 51 | . 7 . 5 . 7 1 . . . 1 . 3 . . 27 . Record 10 | . . . 4 . . . . . . . . . . . 6 . Part Schematic 12 | . 1 . . . . . . . . . . . . . 11 . Robot Schematic 7 | . . . . . . . . . . . . . . . 7 . Robot Analysis 7 | . 3 . . . 4 . . . . . . . . . . . Prototype ID Bank 4 | . . . . . 1 . . . . . . . . . 3 . Alert Level 3 | . 1 . . . 1 . . . . 1 . . . . . . Unreport Threat 2 | . 1 . . . . . . . . . . 1 . . . . Surveillance Status 1 | . . . . . . . . . . . . 1 . . . . Patrol Status 1 | . 1 . . . . . . . . . . . . . . . Zone Layout 2 | . . . . . 1 . . . . . . 1 . . . . Patrol Navigation 1 | . . . . . . 1 . . . . . . . . . . Derelict Proto ID Bank 1 | . . . 1 . . . . . . . . . . . . . Fabricator Hacks 2 | . . . . . . . . . 1 1 . . . . . . Network Status 2 | . . . . . . . . . 1 1 . . . . . . Repair Station Hacks . | . . . . . . . . . . . . . . . . . Recycling Unit Hacks 4 | . 2 . . . 1 . . . . . . 1 . . . . Retrieve Components 4 | . 2 . . . 1 . . . . . . 1 . . . . Scanalyzer 2 | . . . . . . . . . . . . 2 . . . . Insert Component 1 | . . . . . . . . . . . . 1 . . . . Analyze 1 | . . . . . . . . . . . . 1 . . . . Garrison Access Hacks 1 | . . . . . 1 . . . . . . . . . . . Unlock Access 1 | . . . . . 1 . . . . . . . . . . . Unauthorized Hacks 11 | . 4 . . . 1 1 . . 3 . . 2 . . . . Terminals 4 | . 2 . . . 1 1 . . . . . . . . . . Assimilate 1 | . . . . . 1 . . . . . . . . . . . Botnet 2 | . 2 . . . . . . . . . . . . . . . Override 1 | . . . . . . 1 . . . . . . . . . . Fabricators 4 | . . . . . . . . . 3 . . 1 . . . . Report 1 | . . . . . . . . . 1 . . . . . . . Liberate 2 | . . . . . . . . . 1 . . 1 . . . . Haulers 1 | . . . . . . . . . 1 . . . . . . . Repair Stations 1 | . . . . . . . . . . . . 1 . . . . Patch 1 | . . . . . . . . . . . . 1 . . . . Recycling Units 2 | . 2 . . . . . . . . . . . . . . . Tunnel 2 | . 2 . . . . . . . . . . . . . . . Scanalyzers . | . . . . . . . . . . . . . . . . . Garrison Access . | . . . . . . . . . . . . . . . . . Data Cores Recovered 1 | . . . . . . . . . . 1 . . . . . . Used . | . . . . . . . . . . . . . . . . . Hacking Detections 37 | . 9 . . . 10 3 2 . 2 2 . 9 . . . . Full Trace Events 14 | . 2 . . . 6 2 . . 2 1 . 1 . . . . Feedback Events . | . . . . . . . . . . . . . . . . . Feedback Blocked . | . . . . . . . . . . . . . . . . . Robot Schematics Acquired 7 | . . . . . . . . . . . . . . . 7 . Robots Built . | . . . . . . . . . . . . . . . . . Authchips . | . . . . . . . . . . . . . . . . . Time . | . . . . . . . . . . . . . . . . . Total Robot Build Rating . | . . . . . . . . . . . . . . . . . Part Schematics Acquired 13 | . 1 . . . . . . . . . . 1 . . 11 . Parts Built . | . . . . . . . . . . . . . . . . . Authchips . | . . . . . . . . . . . . . . . . . Time . | . . . . . . . . . . . . . . . . . Total Part Build Rating . | . . . . . . . . . . . . . . . . . Parts Repaired . | . . . . . . . . . . . . . . . . . Time . | . . . . . . . . . . . . . . . . . Parts Recycled . | . . . . . . . . . . . . . . . . . Recycled Matter . | . . . . . . . . . . . . . . . . . Retrieved Matter . | . . . . . . . . . . . . . . . . . Retrieved Components 14 | . 4 . . . 9 . . . . . . 1 . . . . Parts Scanalyzed 1 | . . . . . . . . . . . . 1 . . . . Part Schematics Acquired 1 | . . . . . . . . . . . . 1 . . . . Parts Damaged . | . . . . . . . . . . . . . . . . . Bothacking | -11 -10 -10 -10 -9 -8 -8 -7 -7 -7 -6 -6 -6 -6 -6 -6 -5 ------------ Run | Yrd Mat Min Exi Min Mat Gar Fac Was Fac Fac Was Fac Low Low Dat Pro Used RIF Installer . | . . . . . . . . . . . . . . . . . Robots Hacked 4 | . . . 3 . . . . . . 1 . . . . . . Non-combat 3 | . . . 2 . . . . . . 1 . . . . . . Combat 1 | . . . 1 . . . . . . . . . . . . . Robot Hacks Applied 5 | . . . 4 . . . . . . 1 . . . . . . parse_system 4 | . . . 4 . . . . . . . . . . . . . find_chute 1 | . . . . . . . . . . 1 . . . . . . Relay Couplers Released 11 | . . . . . . 11 . . . . . . . . . . Machine Destruction 11 | . . . . . . 11 . . . . . . . . . . Fabnet Peak Effective % . | . . . . . . . . . . . . . . . . . Robots Rewired . | . . . . . . . . . . . . . . . . . Allies Hacked . | . . . . . . . . . . . . . . . . . Hacks Repelled . | . . . . . . . . . . . . . . . . . Allies | -11 -10 -10 -10 -9 -8 -8 -7 -7 -7 -6 -6 -6 -6 -6 -6 -5 -------- Run | Yrd Mat Min Exi Min Mat Gar Fac Was Fac Fac Was Fac Low Low Dat Pro Total Allies 30 | . . . . 5 1 2 . 19 . . . 3 . . . . Largest Group 18 | . . . . 5 5 2 . 18 10 . . 3 . . . . Highest-Rated Group 444 | . . . . 83 83 70 . 444 243 . . 87 . . . . Highest-Rated Ally 39 | . . . . 31 31 39 . 35 31 . . 29 . . . . Total Orders . | . . . . . . . . . . . . . . . . . Ally Attacks 379 | . . . . . 46 45 . 122 160 . . 6 . . . . Total Damage 7347 | . . . . . 410 548 . 4327 2026 . . 36 . . . . Kills 43 | . . . . . 4 4 . 12 23 . . . . . . . Allies Corrupted . | . . . . . . . . . . . . . . . . . Allies Melted . | . . . . . . . . . . . . . . . . . Intel | -11 -10 -10 -10 -9 -8 -8 -7 -7 -7 -6 -6 -6 -6 -6 -6 -5 ------- Run | Yrd Mat Min Exi Min Mat Gar Fac Was Fac Fac Was Fac Low Low Dat Pro Robot Analysis Total 152 | . 3 . . . 4 . . . . . . . . . 145 . Derelict Logs Recovered 3 | . . . . 2 . . . . . . . . . 1 . . Drone Launches . | . . . . . . . . . . . . . . . . . Drone Recoveries . | . . . . . . . . . . . . . . . . . Exploration | -11 -10 -10 -10 -9 -8 -8 -7 -7 -7 -6 -6 -6 -6 -6 -6 -5 ------------- Run | Yrd Mat Min Exi Min Mat Gar Fac Was Fac Fac Was Fac Low Low Dat Pro Turns Passed 21634 | 112 1308 1096 442 730 3401 1854 1173 1306 2473 264 854 2324 1139 1077 723 1358 Spaces Moved 7675 | 40 473 590 233 226 965 639 394 487 864 111 339 773 429 417 169 526 Core 231 | 5 . . . . . . . 99 . . . . . . . 127 Treads 7281 | 35 473 590 233 226 965 639 394 388 864 111 339 773 429 417 169 236 Legs . | . . . . . . . . . . . . . . . . . Wheels . | . . . . . . . . . . . . . . . . . Hover . | . . . . . . . . . . . . . . . . . Flight 163 | . . . . . . . . . . . . . . . . 163 Fastest Speed 50 | 50 160 160 160 320 230 240 240 50 240 158 238 240 240 240 240 50 Average Speed 231 | 146 160 160 181 320 238 240 273 233 242 225 238 240 240 240 298 244 Slowest Speed 480 | 160 160 160 320 320 305 320 320 400 245 238 240 310 240 240 480 480 Overloaded Moves . | . . . . . . . . . . . . . . . . . Propulsion Burnouts . | . . . . . . . . . . . . . . . . . Robots Hopped . | . . . . . . . . . . . . . . . . . Cave-ins Triggered 1 | . . . . . . . . 1 . . . . . . . . Exploration Rate (%) 57 | 5 78 97 59 59 71 79 12 97 31 6 95 20 59 64 80 70 Regions Visited 16 Branch Regions 7 Pre-discovered Areas 35 | . 2 . 1 1 . . . . . . . . 1 . 30 . Known Exits Taken 1 | . . . . . 1 . . . . . . . . . . . Unknown Exits Taken 10 | 1 1 1 1 1 . . . . 1 . . 1 1 1 1 . Scrap Searched 10 | . . . . 1 . . . . . . . . 4 4 . 1 Spaces Dug 210 | . . . . . 4 31 . 8 8 . . 29 . 85 1 44 Terrain Destroyed 880 | . 34 83 . 4 71 43 . 11 34 . . 29 157 251 1 162 Melee 11 | . . . . . 4 . . . 1 . . 5 . . 1 . Projectile 38 | . . . . 4 21 . . 11 1 . . . . . . 1 AOE 831 | . 34 83 . . 46 43 . . 32 . . 24 157 251 . 161 Terrain Rammed 1 | . . . . . . . . . . . . . . . 1 . Walls Destroyed . | . . . . . . . . . . . . . . . . . Machines Disabled . | . . . . . . . . . . . . . . . . . Actions | -11 -10 -10 -10 -9 -8 -8 -7 -7 -7 -6 -6 -6 -6 -6 -6 -5 --------- Run | Yrd Mat Min Exi Min Mat Gar Fac Was Fac Fac Was Fac Low Low Dat Pro Total 10475 | 62 979 663 253 235 1873 820 447 631 1062 123 385 1074 509 464 315 580 Wait 1637 | . 453 15 . 8 687 13 4 58 62 4 2 173 52 14 80 12 Move 7661 | 39 472 589 232 225 965 637 394 486 863 111 338 772 428 416 168 526 Hop . | . . . . . . . . . . . . . . . . . Pick Up 135 | 2 15 3 6 2 14 8 7 24 6 2 14 10 5 5 5 7 Fast Attach 65 | 7 1 . 1 . 15 1 4 12 6 . 6 5 1 . 1 5 Attach 62 | . 1 3 2 . 9 9 2 4 4 2 2 7 3 5 7 2 Detach 30 | . . . 3 . 7 . 2 5 3 . 3 2 1 . 1 3 Swap 112 | . 7 4 1 . 23 18 3 8 15 2 3 7 4 4 7 6 Drop 109 | . 3 . 4 . 30 6 5 12 12 . 15 9 . 3 5 5 Fire 589 | 14 27 49 . . 117 103 26 22 85 1 2 75 15 17 23 13 Melee 42 | . . . 4 . 5 9 . . 1 1 . 5 . . 17 . Ram 1 | . . . . . . . . . . . . . . . 1 . Kick . | . . . . . . . . . . . . . . . . . Crush 6 | . . . . . 1 . . . 4 . . 1 . . . . Escape Stasis 25 | . . . . . . 16 . . 1 . . 8 . . . . Rewire . | . . . . . . . . . . . . . . . . . Trap 1 | . . . . . . . . . . . . . . . . 1 Miscellaneous . | . . . . . . . . . . . . . . . . . Route ------- -11/Scrapyard -10/Materials (discovered 3 exits: [*Mat x2] / [*Min]) -10/Mines (discovered 4 exits: [*Mat x2] / *Exi / [*Sub]) -10/Exiles -9/Mines -8/Materials (discovered 3 exits: *Fac x2 / Gar) -8/Garrison (discovered 3 exits: *Fac x3) -7/Factory -7/Waste -7/Factory (discovered 3 exits: *Fac x2 / [*Low]) -6/Factory -6/Waste -6/Factory (discovered 2 exits: [*Fac] / [*Low]) -6/Lower Caves -6/Lower Caves -6/Data Miner -5/Proximity Caves History --------- Turn | Location | Event 9 | -11/Scrapyard | Discovered new exit (range 15) 113 | -11/Scrapyard | Entered Materials 314 | -10/Materials | Build established: Mutant 717 | -10/Materials | Discovered new exit (range 16) 1392 | -10/Materials | Discovered new exit (range 15) 1392 | -10/Materials | Discovered new exit (range 7) 1421 | -10/Materials | Entered Mines 1647 | -10/Mines | Assembled infested the area 1652 | -10/Mines | Assisted by a Guerilla fighting off Assembled 1778 | -10/Mines | Destroyed 8 combat bots 1825 | -10/Mines | Discovered new exit (range 3) 1893 | -10/Mines | Discovered new exit (range 7) 1960 | -10/Mines | Discovered new exit (range 12) 2005 | -10/Mines | Found a damaged Exp. Sensor Array with a note attached 2008 | -10/Mines | Found Prototype Device 2330 | -10/Mines | Deemed a non-threat by the Exiles lab entrance 2330 | -10/Mines | Discovered new exit (range 5) 2517 | -10/Mines | Entered Exiles 2560 | -10/Exiles | Met 8R-AWN 2589 | -10/Exiles | Met EX-HEX 2635 | -10/Exiles | Met EX-BIN 2656 | -10/Exiles | Aligned with FarCom system 2658 | -10/Exiles | Given EX-Vault access code 2694 | -10/Exiles | Opened EX-Vault 2704 | -10/Exiles | Found Gui. Plasma Cannon 2707 | -10/Exiles | Found PSU Rigger 2714 | -10/Exiles | Found AWS/Thermal 2751 | -10/Exiles | Warned to stay clear of 0b10 Research branches 2796 | -10/Exiles | Met EX-DEC 2802 | -10/Exiles | Learned location of Zion (-7) 2930 | -10/Exiles | Discovered new exit (range 10) 2959 | -10/Exiles | Stole three prototypes: AWS/Thermal, PSU Rigger, Gui. Plasma Cannon 2959 | -10/Exiles | Entered Mines 3198 | -9/Mines | Assisted by bots powering up and referring to "LRC-V3" 3332 | -9/Mines | Learned Materials emergency access door positions 3627 | -9/Mines | Discovered new exit (range 5) 3689 | -9/Mines | Entered Materials 3689 | -8/Materials | Accompanied by 5 allies 3689 | -8/Materials | Evolved 4 slots: Propulsion x1, Utility x2, Weapon x1 3694 | -8/Materials | Led the pair of lost Derelicts to an unsafe place 3867 | -8/Materials | Lost 3 allies 3985 | -8/Materials | Discovered new exit (range 16) 3995 | -8/Materials | Build established: Tank 4672 | -8/Materials | Build established: Skirmisher 5399 | -8/Materials | AWS/Thermal suddenly broke down 5552 | -8/Materials | Discovered new exit (range 10) 6449 | -8/Materials | Build established: Mutant 6554 | -8/Materials | Destroyed 8 combat bots 6557 | -8/Materials | Garrison activated, responded to threat 7088 | -8/Materials | Identified exit to Garrison 7090 | -8/Materials | Entered Garrison 7268 | -8/Garrison | Rescued a captive Derelict 7269 | -8/Garrison | Rescued a captive Derelict 7278 | -8/Garrison | Triggered checkpoint 7310 | -8/Garrison | Garrison Relay disabled 7346 | -8/Garrison | Build established: Scavenger-Skirmisher 7696 | -8/Garrison | Triggered checkpoint 7754 | -8/Garrison | Triggered checkpoint 7903 | -8/Garrison | Triggered checkpoint 7922 | -8/Garrison | Discovered new exit (range 17) 8311 | -8/Garrison | System corruption reached 10% 8328 | -8/Garrison | Lost 6 parts (3n1u2w) 8357 | -8/Garrison | Discovered new exit (range 12) 8361 | -8/Garrison | Triggered checkpoint 8571 | -8/Garrison | Build established: Mutant 8604 | -8/Garrison | Attempted to access garrison exit controls, blocked by remote lockdown 8694 | -8/Garrison | Triggered checkpoint 8709 | -8/Garrison | Core integrity fell below 50% 8844 | -8/Garrison | Identified exit to Factory 8852 | -8/Garrison | Triggered checkpoint 8885 | -8/Garrison | Triggered checkpoint 8942 | -8/Garrison | System corruption reached 30% 8944 | -8/Garrison | Entered Factory 8944 | -7/Factory | Evolved 2 slots: Utility x2 8946 | -7/Factory | FarCom data flow suspended 8953 | -7/Factory | Identified Exp. Sensor Array 9501 | -7/Factory | Build established: Tank 10100 | -7/Factory | Build established: Scavenger-Tank 10117 | -7/Factory | Sucked down chute 10117 | -7/Factory | Entered Waste 10118 | -7/Waste | Met a frightened Derelict 10177 | -7/Waste | Spotted C-40 Crusher 10182 | -7/Waste | Spotted C-40 Crusher 10216 | -7/Waste | Crushed by falling debris 10216 | -7/Waste | Crushed by Compactor (1 part destroyed, 2 dropped) 10247 | -7/Waste | Lost 3 parts (1n2u) 10248 | -7/Waste | Released all parts (10) 10256 | -7/Waste | Spotted C-40 Crusher 10268 | -7/Waste | Spotted C-40 Crusher 10273 | -7/Waste | Warlord forces began an assault 10279 | -7/Waste | Allies destroyed C-40 Crusher 10284 | -7/Waste | Allies destroyed C-40 Crusher 10288 | -7/Waste | Spotted C-40 Crusher 10295 | -7/Waste | Allies destroyed C-40 Crusher 10477 | -7/Waste | Spotted C-40 Crusher 10505 | -7/Waste | Allies destroyed C-40 Crusher 10533 | -7/Waste | Lost 7 allies 10584 | -7/Waste | Build established: Hauler-Tank 11121 | -7/Waste | Build established: Scavenger-Gunner 11137 | -7/Waste | Discovered new exit (range 11) 11423 | -7/Waste | Entered Factory 11423 | -7/Factory | Accompanied by 10 allies 12075 | -7/Factory | Discovered new exit (range 15) 12154 | -7/Factory | Found Prototype Launcher 12154 | -7/Factory | Identified Rocket Array 13179 | -7/Factory | Discovered new exit (range 15) 13423 | -7/Factory | First assault squad dispatched 13522 | -7/Factory | Lost 3 allies 13537 | -7/Factory | Destroyed 10 combat bots 13779 | -7/Factory | Discovered new exit (range 14) 13896 | -7/Factory | Entered another Factory area 13896 | -6/Factory | Evolved 2 slots: Propulsion x1, Utility x1 14160 | -6/Factory | Sucked down chute 14160 | -6/Factory | Entered Waste 14160 | -6/Waste | The area was eerily silent 14240 | -6/Waste | A Compactor rumbled back to life 14241 | -6/Waste | Spotted C-40 Crusher 14266 | -6/Waste | Destroyed C-40 Crusher 14667 | -6/Waste | Found Fusion Bomb Launcher 14890 | -6/Waste | Build established: Hauler-Gunner 14985 | -6/Waste | Discovered new exit (range 12) 15014 | -6/Waste | Entered Factory 15764 | -6/Factory | Spotted B-75 Beast 15838 | -6/Factory | Destroyed B-75 Beast 16217 | -6/Factory | Discovered new exit (range 11) 16374 | -6/Factory | Garrison activated, responded to threat 17201 | -6/Factory | Discovered new exit (range 10) 17310 | -6/Factory | Lost 3 allies 17338 | -6/Factory | Entered Lower Caves 17400 | -6/Lower Caves | Met a Warlord Commander 17401 | -6/Lower Caves | Learned location of Warlord (-5) 17402 | -6/Lower Caves | Warlord Commander delivered Encrypted Comm Array 17404 | -6/Lower Caves | Found Encrypted Comm Array 18203 | -6/Lower Caves | Spotted B-75 Beast 18460 | -6/Lower Caves | Discovered new exit (range 4) 18477 | -6/Lower Caves | Entered another Lower Caves area 18479 | -6/Lower Caves | Attracted the attention of an 0b10 checkpoint 18524 | -6/Lower Caves | Spotted B-75 Beast 18553 | -6/Lower Caves | Destroyed B-75 Beast 18857 | -6/Lower Caves | Encountered a Warlord checkpoint 19431 | -6/Lower Caves | Spotted 6D-17S(f) 19433 | -6/Lower Caves | Encountered a Master Thief 19433 | -6/Lower Caves | Spotted 6J-CDH(f) 19433 | -6/Lower Caves | Gui. Plasma Cannon stolen by Master Thief 19434 | -6/Lower Caves | Encountered a Master Thief 19434 | -6/Lower Caves | Spotted RX-56Z(f) 19435 | -6/Lower Caves | Encountered a Master Thief 19435 | -6/Lower Caves | Fusion Bomb Launcher stolen by Master Thief 19436 | -6/Lower Caves | Antimatter Reactor stolen by Master Thief 19437 | -6/Lower Caves | Destroyed RX-56Z(f) 19443 | -6/Lower Caves | Destroyed 6J-CDH(f) 19446 | -6/Lower Caves | Discovered new exit (range 15) 19554 | -6/Lower Caves | Entered Data Miner 19556 | -6/Data Miner | Discovered new exit (range 6) 19605 | -6/Data Miner | Met Data Miner 19650 | -6/Data Miner | Learned location of Section 7 (-2) 19650 | -6/Data Miner | Acquired the access code to Warlord's prototype stash 19686 | -6/Data Miner | Received God Mode back door access code from Data Miner 19746 | -6/Data Miner | Destroyed Data Miner 19751 | -6/Data Miner | Interfaced with the Data Conduit 20277 | -6/Data Miner | Entered Proximity Caves 20792 | -5/Proximity Caves | Attracted the attention of an 0b10 checkpoint 21456 | -5/Proximity Caves | Attracted the attention of an 0b10 outpost 21460 | -5/Proximity Caves | Released all parts (8) 21465 | -5/Proximity Caves | Core integrity fell below 50% 21507 | -5/Proximity Caves | Lost 3 parts (2u1w) 21608 | -5/Proximity Caves | System corruption reached 10% 21625 | -5/Proximity Caves | Core integrity fell below 20% 21635 | -5/Proximity Caves | Destroyed by S-27 Virus with Autogun Last Messages --------------- 21527_ Acquired Mak. Flight Unit. 21530_ Acquired Thermic Laser. 21532_ Acquired Energy Well. 21535_ System corrupted: Matter fused (-5). 21535_ Acquired Imp. Weapon Shielding. 21552_ System corrupted: Heat flow error (+128). 21597_ Dropped Humpback. 21607_ System corrupted: Energy discharge (-104). 21607_ Acquired Corrupted Encrypted Comm Array. 21607_ Integrated Corrupted Encrypted Comm Array (+10). 21610_ Acquired Corrupted Impact Mace. 21615_ Penetrated by Slug. 21615_ Slug penetrates Wall. 21622_ System corrupted: Matter fused (-10). 21624_ G-50 Soldier destroyed. 21624_ Destroyed VTOL Module. 21626_ Dropped Imp. Weapon Shielding. 21627_ Dropped Energy Well. 21630_ Extracted 7 energy. 21631_ G-50 Soldier IFF system glitched. Map ----- +----------------------------------------------------+ | ?????????????????????????????????????????????????? | | ?????????????????????????????????????????????????? | | ?????????????????????????????????????????????????? | | ?????????????????????????????????????????????????? | | ?????????????????????????????????????????????????? | | ?????????????????????????????????????????????????? | | ?????????????????????????????????????????????????? | | ?????????????????????????????????????????????????? | | ?????????????????????????????????????????????????? | | ?????????????????????????????????????????????????? | | ?????????????????????????????????????????????????? | | ?????????????????????????????????????????????????? | | ?????????????????????????????????????????????????? | | ?????????????????????????????????????????????????? | | ???##############???????????????????????????????? | | ??## ## #??###??????????????????????????? | | ?## #### #?????????????????????????? | | ## #????????????????????????? | | #?????? ##???????????????????????? | | #####?????# #???????????????????????? | | ##?## ##???? #???????????????????????? | | #??# #???# ##???###????????????????? | | ## #??# ##?# ### ?????????????????? | | ## #?## ### ???????????????????? | | ## ##?# ## ?????????????????????? | | ##??# ## @#??????????????????????? | | ##????# ##??????????????????????? | | ##?????# ##??????????????????????? | | # ##????# #??????????????????????? | | # #????#### #??????????????????????? | | # #?????## #??????????????????????? | | ##### #?????# ##??????????????????????? | | ##??## #?????# ##??????????????????????? | | ##### #????# #??????????????????????? | | ## ###### % #??????????????????????? | | ## ## !! s #??????????????????????? | | ##### # #??????????????????????? | | #?### #"""" #??????????????????????? | | ##?# #" # ###???????##?????????????? | | #??# # ##???????? ##????????????? | | ###??# # #???????? #????????????? | | ##????# #" # ######## #????????????? | | ####??### #""""#! *# #"""# #????????????? | | #??### #######!!""" #????????????? | | #??# " ! &]!!!* #?????????????? | | #??##### /&[ ]*%[ #####????????????????? | | ##??????# =!!] !=/ "#???????????????? #?? | | ## #???????## !! * ############# #?? | | ## #####?#### !/ [#" #??? | | ?# ## ## * ## #???? | +----------------------------------------------------+ Best States ------------- Heat Dissipation 93 Energy Generation 21 Energy Capacity 450 Matter Stores 300 Matter Capacity 300 Sight Range 20 Terrain Scan Density 10 Jamming Range 12 Base Temperature (-) 100 EM Shielding 2 Armor Coverage 1200 Weapon Shielding 66 Evasion (%) 59 Targeting Accuracy 8 Core Analysis 6 Armor Integrity Analysis 40 Recoil Reduction 4 Matter Filtering 30 Offensive Hacking 10 Authchip Count 3 Item Schematics ----------------- Cargo Storage Unit | -10/Materials | Hacked Humpback | -6/Factory | Scanalyzed Combat Drone Bay | -6/Data Miner | Free Enh. Armored Leg | -6/Data Miner | Free Imp. Energy Well | -6/Data Miner | Free Thunder Hammer | -6/Data Miner | Free Field Propulsion Array | -6/Data Miner | Free Adv. Medium Treads | -6/Data Miner | Free Imp. Antigrav System | -6/Data Miner | Free Enh. Force Lance | -6/Data Miner | Free Phase Gun | -6/Data Miner | Free Adv. Trap Scanner | -6/Data Miner | Free Lgt. Regenerative Plating | -6/Data Miner | Free Robot Schematics ------------------ E-15 Imp | -6/Data Miner | Free X-72 Disruptor | -6/Data Miner | Free M-22 Extractor | -6/Data Miner | Free L-41 Fighter | -6/Data Miner | Free A-15 Conveyor | -6/Data Miner | Free G-67 Veteran | -6/Data Miner | Free O-32 Director | -6/Data Miner | Free Fabricated ------------ Nothing Alien Tech Used ----------------- None Achievements -------------- None Challenges ------------ None Game ------ Seed AcceleratedCommRedirector Manual? 0 Play Time 02:01:35 Cumulative 273.2 hours Start 2024.08.30 @ 18:29:14 End 2024.08.31 @ 19:03:22 Sessions 3 Manual Loads 0 Difficulty Rogue Special Mode None Game No. 133 Rogue 133 Adventurer 0 Explorer 0 Win Type - Total 8 Types 4/1/3/0/0/0/0/0/0 Lore% 76 Gallery% 85 Achievement% 71 Wizard Run 0 Options --------- Layout 0 ASCII 0 Keyboard 0 Movement Mouse Keybinds 0 Fullscreen 2 Font 18/SmallcapsGlow Map View 76x50 Zoom Use 0% Tactical HUD 1 Map Filters NONE Filters NONE Steam 1 RUN: 917b786a-2aec-44ea-bc98-f31a069efb15